Cogmind - Beta 10.2 @@@ ROGUE MODE // 2020.11.06 @ 01:42:25 // Halloween2020/ForbiddenLore Player: Shodan Result: Destroyed by as-06719 with Assembled Focal Cannon Performance ------------- Evolutions (3) 1500 Regions Visited (12) 2400 Robots Destroyed (173) 865 Value Destroyed (3898) 3898 Prototype IDs (42) 840 Alien Tech Used (0) 0 Bonus (-191) -191 TOTAL SCORE: 9312 Bonus ------- High Alert Combat Kills 97 Follower Combat Kills 215 Aligned with FarCom 300 Friendly Fire -803 Cogmind --------- Core Integrity 0/700 Matter 157/300 Energy 100/100 System Corruption 8% Temperature Cool (16) Movement Core (850) Ox16 Location -7/Deep Caves Parts ------- > --- POWER (1) -------- Zionite Light DM Reactor > --- PROPULSION (4) --- (None) > --- UTILITY (6) ------ Experimental Heat Sink High-capacity Storage Unit Improved Armor Integrity Analyzer > --- WEAPON (2) ------- Zionite Laser-S Zionite Phaser-S > --- INVENTORY (12) --- Zionite Light DM Reactor Zionite Light DM Reactor Zionite Biocell (1000) Zionite Weapon Casing Heavy Riot Gun Zionite Laser-S Zionite Laser-S Makeshift Spear Peak State ------------ > --- POWER ------------ Zionite Light DM Reactor > --- PROPULSION ------- Gravmag System Makeshift Hover Unit Makeshift Hover Unit Zionite Glidesys I > --- UTILITY ---------- Experimental Heat Sink High-capacity Storage Unit Improved Armor Integrity Analyzer Improved Maneuvering Thrusters Zionite Heavy Carapace > --- WEAPON ----------- Zionite Phaser-S Zionite Phaser-S > --- INVENTORY -------- Improved Deuterium Engine Zionite Light DM Reactor Zionite Light DM Reactor Zionite Biocell Zionite Biocell Zionite Weapon Casing Zionite Light Carapace Heavy Riot Gun Zionite Laser-S Zionite Laser-S Zionite Laser-S Makeshift Spear [Rating: 79] Favorites ----------- Power Improved Deuterium Engine Engine Improved Deuterium Engine Reactor Zionite Light DM Reactor Propulsion Aerolev Unit Treads Armored Treads Leg Makeshift Leg Wheel Wheel Hover Unit Aerolev Unit Utility High-capacity Storage Unit Device Experimental Heat Sink Storage High-capacity Storage Unit Processor Experimental Targeting Computer Hackware Makeshift System Shield Protection Makeshift Armor Plating Weapon 8R-AWN's Boregun Energy Gun Lightning Gun Energy Cannon Latent Energy Streamer Ballistic Gun 8R-AWN's Boregun Launcher Proton Missile Launcher Special Weapon Flamer Slashing Weapon Great Axe Piercing Weapon Makeshift Spear Build | -11 -10 -10 -9 -9 -9 -8 -8 -7 -7 -7 -7 -7 ------- Run | Scr Mat Min Mat Min Exi Min Mat Fac Low Low Zio Dee Slots Evolved 6 | . . . 2 . . . 2 2 . . . . Power . | . . . . . . . . . . . . . Propulsion 2 | . . . . . . . 1 1 . . . . Utility 4 | . . . 2 . . . 1 1 . . . . Weapon . | . . . . . . . . . . . . . Parts Attached 173 | . 11 5 10 . 16 1 20 18 5 4 53 30 Power 14 | . . 1 1 . 2 . 1 1 . . 6 2 Engine 12 | . . 1 1 . 2 . 1 1 . . 6 . Core . | . . . . . . . . . . . . . Reactor 2 | . . . . . . . . . . . . 2 Propulsion 52 | . 4 3 4 . 1 1 9 3 . . 19 8 Treads 1 | . . . . . . . . . . . 1 . Leg 16 | . . . . . . . . . . . 14 2 Wheel 16 | . 4 3 4 . 1 1 3 . . . . . Hover 19 | . . . . . . . 6 3 . . 4 6 Flight . | . . . . . . . . . . . . . Utility 49 | . . . 3 . 9 . 4 4 . 2 14 13 Device 9 | . . . . . 2 . . 1 . 1 2 3 Storage 6 | . . . . . 3 . . 1 . . 1 1 Processor 3 | . . . . . 1 . . . . . 2 . Hackware 2 | . . . . . . . 2 . . . . . Protection 29 | . . . 3 . 3 . 2 2 . 1 9 9 Artifact . | . . . . . . . . . . . . . Weapon 58 | . 7 1 2 . 4 . 6 10 5 2 14 7 Energy Gun 10 | . . . . . . . 1 . 2 1 . 6 Energy Cannon 3 | . . . . . 1 . . 1 . . . 1 Ballistic Gun 28 | . 6 . 2 . 2 . 3 5 1 . 9 . Ballistic Cannon . | . . . . . . . . . . . . . Launcher 5 | . 1 1 . . . . . . 1 1 1 . Special Weapon 1 | . . . . . . . . . . . 1 . Impact Weapon . | . . . . . . . . . . . . . Slashing Weapon 9 | . . . . . 1 . 2 4 1 . 1 . Piercing Weapon 2 | . . . . . . . . . . . 2 . Special Melee Weapon . | . . . . . . . . . . . . . Unidentified Prototypes 19 | . . . . . 5 . 2 1 . . 2 9 Parts Lost 52 | . 1 7 1 . 2 . 2 1 . 5 21 12 Power 4 | . . 1 . . 1 . 1 . . 1 . . Propulsion 17 | . . 3 . . 1 . 1 . . . 7 5 Utility 13 | . . . . . . . . . . 1 7 5 Weapon 18 | . 1 3 1 . . . . 1 . 3 7 2 Highest Loss Streak 9 | . 1 7 1 . 1 . 2 1 . 5 3 9 Average Slot Usage (%) 83 | . 82 68 70 66 82 88 86 87 84 75 83 96 Engine 6 | . 14 14 10 11 7 11 6 7 7 2 3 4 Leg 6 | . 11 . . . . . . . . . 12 19 Wheel 6 | . 15 22 21 22 21 22 6 . . . . . Hover 10 | . . . . . . . 12 22 23 23 12 9 Device 3 | . . . . . . . . 5 . 4 4 6 Storage 8 | . 14 14 11 11 11 11 9 7 7 7 7 7 Processor 6 | . . . . . 6 11 9 7 7 7 6 7 Hackware 8 | . . . . . . . 14 15 15 15 11 . Protection 12 | . . . 18 22 15 11 10 7 7 7 11 21 Ballistic Gun 9 | . 26 16 9 . 13 22 16 6 4 . 7 . Slashing Weapon 1 | . . . . . 3 . 1 5 5 2 . . Naked Turns . | . . . . . . . . . . . . . Heaviest Build 75 | 10 11 11 30 27 64 63 70 75 75 72 74 70 Greatest Support 96 | 20 20 20 20 20 22 22 45 52 52 52 96 96 Greatest Overweight (x) 19 | . 1 2 1 1 3 2 3 3 1 1 19 1 Average Overweight (x) . | . . . . 1 1 2 1 . 1 . . . Largest Inventory Capacity 12 | . 6 6 6 6 12 12 12 12 12 12 12 12 Average Capacity 10 | . 6 6 6 6 8 12 12 12 12 12 12 12 Most Carried 12 | . 6 6 6 6 12 12 12 12 12 12 12 12 Average Carried 10 | . 5 4 4 6 7 12 11 11 10 10 11 11 Final Capacity 12 | 6 6 6 6 6 12 12 12 12 12 12 12 12 Final Carried 12 | 6 6 1 6 6 12 12 12 12 12 12 12 8 Class Distribution -------------------- 78% | Scavenger-Mutant 21% | Mutant Dominant Class ---------------- Mutant | -10/Materials Mutant | -10/Mines Mutant | -9/Materials Mutant | -9/Mines Mutant | -9/Exiles Scavenger-Mutant | -8/Mines Scavenger-Mutant | -8/Materials Scavenger-Mutant | -7/Factory Scavenger-Mutant | -7/Lower Caves Scavenger-Mutant | -7/Lower Caves Scavenger-Mutant | -7/Zion Scavenger-Mutant | -7/Deep Caves Resources | -11 -10 -10 -9 -9 -9 -8 -8 -7 -7 -7 -7 -7 ----------- Run | Scr Mat Min Mat Min Exi Min Mat Fac Low Low Zio Dee Matter Collected 5375 | 200 138 14 44 41 876 270 648 596 186 . 1959 403 Remotely . | . . . . . . . . . . . . . Salvage Created 5736 | . 322 13 84 . 673 325 854 1033 415 102 1512 403 Parts 401 | . 13 . 8 . 71 19 51 51 14 5 142 27 Haulers Intercepted 5 | . 1 . . . . . 3 1 . . . . Recyclers Shooed 2 | . . . . . . 2 . . . . . . Parts Field Recycled . | . . . . . . . . . . . . . Retrieved Matter . | . . . . . . . . . . . . . Parts Self-Destructed 12 | . . . . . . . . . 5 7 . . Prevented 7 | . . . . . . . . . 5 2 . . Kills | -11 -10 -10 -9 -9 -9 -8 -8 -7 -7 -7 -7 -7 ------- Run | Scr Mat Min Mat Min Exi Min Mat Fac Low Low Zio Dee Combat Hostiles Destroyed 63 | . 4 5 4 . . 5 9 15 8 2 6 5 Melee 1 | . . . . . . . . . 1 . . . Guns 43 | . 4 . 4 . . 5 9 8 5 1 6 1 Cannons 2 | . . . . . . . . . . . . 2 AOE 14 | . . 5 . . . . . 6 2 1 . . Classes Destroyed 22 | . 4 1 1 . 2 3 4 3 1 . 2 1 Worker 4 | . . . . . . . 4 . . . . . Builder 1 | . . . . . . . 1 . . . . . Tunneler 2 | . . . . . . 2 . . . . . . Hauler 5 | . 1 . . . . . 3 1 . . . . Recycler 1 | . 1 . . . . . . . . . . . Mechanic 1 | . . . . . . . . 1 . . . . Operator 5 | . 1 . 1 . . . . 3 . . . . Turret 4 | . . . . . 4 . . . . . . . Watcher 1 | . . . . . . . 1 . . . . . Swarmer 4 | . . . 3 . . . . . 1 . . . Grunt 26 | . 4 . 1 . . 3 4 7 5 2 . . Brawler 3 | . . . . . . 1 1 1 . . . . Duelist 2 | . . . . . . 1 . 1 . . . . Sentry 8 | . . . . . . . 4 3 1 . . . Hunter 1 | . . . . . . . . 1 . . . . Programmer 2 | . . . . . . . . 2 . . . . Zionite 92 | . . . . . 7 . . . . . 85 . Z-Technician 5 | . . . . . . . . . . . . 5 Z-Light 5 | . . . . . . . . . . . . 5 Tinkerer 7 | . . . . . . . . . . . 7 . Master Thief 1 | . . . . . . . . . 1 . . . Assembled 5 | . . 5 . . . . . . . . . . Butcher 1 | . . . . . . . . . . . 1 . Mutant 4 | . . . . . . . . . . . 4 . Best Kill Streak 14 | . 2 5 4 . 5 3 5 4 4 2 14 5 Combat Bots Only 5 | . 2 5 4 . . 3 3 4 4 2 1 5 Max Kills in Single Turn 3 | . 1 2 1 . 2 1 2 3 1 1 3 1 Gunslinging . | . . . . . . . . . . . . . Exploded 3 | . . 2 . . . . . 3 1 1 . . Melee 1 | . . . . . . . . . 1 . . . Uniques/NPCs Destroyed 5 | . . . . . 4 . . . . . 1 . 8R-AWN (-9/Exiles) EX-BIN (-9/Exiles) EX-DEC (-9/Exiles) EX-HEX (-9/Exiles) Imprinter (-7/Zion) Combat | -11 -10 -10 -9 -9 -9 -8 -8 -7 -7 -7 -7 -7 -------- Run | Scr Mat Min Mat Min Exi Min Mat Fac Low Low Zio Dee Damage Taken 9229 | . 393 525 224 . 419 181 408 647 606 626 3283 1917 Core 1230 | . 39 162 18 . 157 39 75 94 22 108 300 216 Absorbed by Shields 9 | . . . . . . . . . . . 9 . Core Remaining (%) 62 | 100 . 19 . . . 46 86 . . . . . Volleys Fired 512 | . 28 5 21 . 44 20 40 64 26 4 214 46 Largest 2 | . 2 2 1 . 2 2 2 2 2 2 2 2 Hottest 120 | . 40 40 23 . 60 60 60 60 110 110 100 120 Shots Fired 806 | . 54 7 21 . 85 40 75 67 35 5 360 57 Gun 765 | . 53 4 21 . 85 40 75 66 32 3 352 34 Cannon 24 | . . . . . . . . 1 . . . 23 Launcher 14 | . 1 3 . . . . . . 3 2 5 . Special 3 | . . . . . . . . . . . 3 . Kinetic 710 | . 53 4 21 . 85 40 75 66 14 . 352 . Thermal 14 | . . . . . . . . . . . 3 11 Explosive 4 | . 1 3 . . . . . . . . . . Electromagnetic 67 | . . . . . . . . 1 21 5 5 35 Phasic 11 | . . . . . . . . . . . . 11 Robot Hit Streak 23 | . 9 1 8 . 15 7 9 11 4 1 23 7 Robot Miss Streak 6 | . 2 2 4 . 5 3 2 4 3 2 6 4 Penetration Max 1 | . . . . . . 1 1 1 . . 1 . Secondary Targets 6 | . . . . . . . . . 2 . 4 . Max Gunslinging Chain 1 | . . . . . . . . . 1 . 1 . Shots Hit Robots 621 | . 40 3 19 . 54 27 43 45 26 2 321 41 Core Hits 353 | . 16 14 10 . 26 12 23 27 17 5 182 21 Critical Hits 121 | . . . . . 33 20 27 34 4 . 3 . Critical Kills 40 | . . . . . 10 5 13 11 1 . . . Critical Parts Destroyed 68 | . . . . . 17 10 13 22 3 . 3 . Melee Attacks 37 | . . . . . 1 . 2 9 5 . 6 14 Impact . | . . . . . . . . . . . . . Slashing 19 | . . . . . 1 . 2 9 5 . 2 . Piercing 18 | . . . . . . . . . . . 4 14 Sneak Attacks 9 | . . . . . 1 . . . . . 1 7 Combat Hostiles . | . . . . . . . . . . . . . Follow-up Attacks . | . . . . . . . . . . . . . Damage Inflicted 14297 | . 484 432 266 . 1090 571 948 2293 825 258 5740 1390 Guns 10403 | . 436 12 266 . 934 571 948 1032 480 42 5238 444 Cannons 347 | . . . . . . . . 5 . . . 342 Explosions 2319 | . 48 418 . . . . . 1213 178 216 246 . Melee 1215 | . . . . . 156 . . 43 167 . 245 604 Ramming 2 | . . 2 . . . . . . . . . . Kinetic 9627 | . 436 12 266 . 934 571 948 1032 190 . 5238 . Thermal 812 | . . . . . . . . 738 . 38 11 25 Explosive 466 | . 48 418 . . . . . . . . . . Electromagnetic 1911 | . . . . . . . . 480 468 220 246 497 Impact . | . . . . . . . . . . . . . Slashing 515 | . . . . . 156 . . 43 167 . 149 . Piercing 700 | . . . . . . . . . . . 96 604 Phasic 264 | . . . . . . . . . . . . 264 Highest Corruption 8 | . . . . . . . 6 6 6 6 8 8 Average Corruption 6 | . . . . . . . 6 4 6 6 6 8 Corruption Purged . | . . . . . . . . . . . . . Effects 126 | . . . . . . . 2 22 16 9 48 29 Message Errors 27 | . . . . . . . . 5 7 2 9 4 Matter Fused 17 | . . . . . . . 1 5 3 . 5 3 Heat Flow Errors 17 | . . . . . . . 1 4 1 1 5 5 Energy Discharges 10 | . . . . . . . . 1 3 2 2 2 Parts Rejected 2 | . . . . . . . . . . . 1 1 Data Loss (minor) 8 | . . . . . . . . 3 . 1 1 3 Data Loss (major) 7 | . . . . . . . . . . 2 4 1 Misfires 5 | . . . . . . . . . . . 4 1 Targeting Errors 24 | . . . . . . . . 1 2 . 13 8 Weapon Failures 9 | . . . . . . . . 3 . 1 4 1 Overload Shots . | . . . . . . . . . . . . . Overflow Damage 301 | . . 21 . . . . . 107 40 . 35 98 Projectiles . | . . . . . . . . . . . . . Explosions 137 | . . 21 . . . . . 107 9 . . . Melee 164 | . . . . . . . . . 31 . 35 98 Knockbacks . | . . . . . . . . . . . . . Impact . | . . . . . . . . . . . . . Kinetic . | . . . . . . . . . . . . . Secondary . | . . . . . . . . . . . . . Self-Inflicted Damage 98 | . . 66 . . . . . . . 20 12 . Shots 5 | . . 3 . . . . . . . 1 1 . Rammed 1 | . . 1 . . . . . . . . . . Targets Rammed 1 | . . 1 . . . . . . . . . . Kicked . | . . . . . . . . . . . . . Crushed . | . . . . . . . . . . . . . Highest Temperature 444 | . 18 20 5 . 35 120 144 208 444 238 281 325 Average Temperature 88 | . 9 11 3 . 12 47 23 81 194 75 88 112 Received Heat Transfer 2130 | . 231 60 66 . . 36 63 99 246 225 645 459 Effects 3 | . . . . . . . . . 2 . . 1 Shutdowns 1 | . . . . . . . . . 1 . . . Energy Bleed 2 | . . . . . . . . . 1 . . 1 Siege Activations . | . . . . . . . . . . . . . Robots Corrupted 3 | . . . . . . . . 1 . . . 2 Combat Hostiles 3 | . . . . . . . . 1 . . . 2 Parts Fried 19 | . . . . . . . . 3 2 1 . 13 Impact Corruptions . | . . . . . . . . . . . . . Robots Melted . | . . . . . . . . . . . . . Combat Hostiles . | . . . . . . . . . . . . . Parts Melted 6 | . . . . . . . . . . . 6 . Heat Transferred 667 | . . . . . . . . 450 . 100 80 37 Parts Sabotaged . | . . . . . . . . . . . . . Parts Stolen 4 | . . . . . . . . . 4 . . . Parts Stripped . | . . . . . . . . . . . . . Power Chain Reactions 1 | . . . . . . . . . . 1 . . Missiles Intercepted . | . . . . . . . . . . . . . Latent Energy Used 200 | . . . . . . . . 200 . . . . LE Corruption 3 | . . . . . . . . 3 . . . . Alert | -11 -10 -10 -9 -9 -9 -8 -8 -7 -7 -7 -7 -7 ------- Run | Scr Mat Min Mat Min Exi Min Mat Fac Low Low Zio Dee Peak Influence 732 | . 96 12 107 37 . 151 391 732 . . . . Initial 58 | . . 12 . 37 . . 58 49 . . . . Average 162 | . 24 6 28 37 . 88 173 302 . . . . Maximum Alert Level 3 | . . . . . . . 1 3 . . . . Low Security (%) 72 | . 100 100 100 100 . 100 62 45 . . . . Level 1 16 | . . . . . . . 37 25 . . . . Level 2 8 | . . . . . . . . 24 . . . . Level 3 1 | . . . . . . . . 4 . . . . Level 4 . | . . . . . . . . . . . . . Level 5 . | . . . . . . . . . . . . . High Security . | . . . . . . . . . . . . . Max Security . | . . . . . . . . . . . . . Squads Dispatched 8 | . 1 . 1 . . . 1 4 . 1 . . Investigation 1 | . . . . . . . . 1 . . . . Extermination 2 | . . . . . . . . 2 . . . . Reinforcement 3 | . 1 . 1 . . . . 1 . . . . Assault 1 | . . . . . . . . . . 1 . . Garrison 1 | . . . . . . . 1 . . . . . Intercept . | . . . . . . . . . . . . . Construction Impeded . | . . . . . . . . . . . . . Haulers Reinforced . | . . . . . . . . . . . . . Stealth | -11 -10 -10 -9 -9 -9 -8 -8 -7 -7 -7 -7 -7 --------- Run | Scr Mat Min Mat Min Exi Min Mat Fac Low Low Zio Dee Distress Signals 2 | . . . . . . . 1 1 . . . . Communications Jammed . | . . . . . . . . . . . . . Distress Signals . | . . . . . . . . . . . . . Times Spotted 258 | . 6 14 13 . 25 5 13 26 14 12 124 6 Peak Tracking Total 13 | . 3 13 9 . 7 3 3 6 5 12 6 5 Tactical Retreats 38 | . . 2 . . 3 1 3 5 2 3 19 . Traps | -11 -10 -10 -9 -9 -9 -8 -8 -7 -7 -7 -7 -7 ------- Run | Scr Mat Min Mat Min Exi Min Mat Fac Low Low Zio Dee Traps Triggered 4 | . 2 . 2 . . . . . . . . . Indirectly . | . . . . . . . . . . . . . Trap Hack Attempts . | . . . . . . . . . . . . . Triggered . | . . . . . . . . . . . . . Disarmed . | . . . . . . . . . . . . . Reprogrammed . | . . . . . . . . . . . . . Reused . | . . . . . . . . . . . . . Traps Extracted . | . . . . . . . . . . . . . Installed . | . . . . . . . . . . . . . Triggered . | . . . . . . . . . . . . . Machines | -11 -10 -10 -9 -9 -9 -8 -8 -7 -7 -7 -7 -7 ---------- Run | Scr Mat Min Mat Min Exi Min Mat Fac Low Low Zio Dee Machines Disabled 36 | . 1 . . . 14 . 2 17 1 . . 1 Max in Single Turn 8 | . 1 . . . 2 . 1 8 1 . . 1 Garrison Access 2 | . . . . . . . 1 1 . . . . Machines Sabotaged . | . . . . . . . . . . . . . Garrisons Compromised . | . . . . . . . . . . . . . Overloaded Fab Kills . | . . . . . . . . . . . . . Fab Network Shutdowns . | . . . . . . . . . . . . . Hacking | -11 -10 -10 -9 -9 -9 -8 -8 -7 -7 -7 -7 -7 --------- Run | Scr Mat Min Mat Min Exi Min Mat Fac Low Low Zio Dee Machines Accessed 23 | . 3 . 2 . 1 . 6 11 . . . . Terminals 15 | . 3 . 1 . . . 5 6 . . . . Fabricators 2 | . . . . . . . . 2 . . . . Repair Stations 2 | . . . . . . . . 2 . . . . Recycling Units 1 | . . . 1 . . . . . . . . . Scanalyzers . | . . . . . . . . . . . . . Garrison Access 2 | . . . . . . . 1 1 . . . . Total Hacks 76 | . 11 . 6 . 1 . 26 32 . . . . Successful 34 | . 4 . 3 . 1 . 13 13 . . . . Failed 41 | . 7 . 3 . . . 12 19 . . . . Catastrophic 11 | . 2 . . . . . 3 6 . . . . Database Lockouts 1 | . . . . . . . 1 . . . . . Manual 55 | . 9 . 5 . 1 . 26 8 . . 6 . Terminals 61 | . 11 . 5 . . . 25 20 . . . . Fabricators 7 | . . . . . . . . 7 . . . . Repair Stations 3 | . . . . . . . . 3 . . . . Recycling Units 1 | . . . 1 . . . . . . . . . Scanalyzers . | . . . . . . . . . . . . . Garrison Access 3 | . . . . . . . 1 2 . . . . Terminal Hacks 22 | . 1 . 2 . 1 . 10 8 . . . . Robot Schematic 1 | . . . . . . . . 1 . . . . Robot Analysis 3 | . . . 2 . . . 1 . . . . . Branch Access Points 2 | . . . . . . . 1 1 . . . . Terminal Index 2 | . . . . . . . 1 1 . . . . Alert Level 3 | . . . . . . . 2 1 . . . . Unreport Threat 7 | . 1 . . . . . 2 4 . . . . Investigation Status 1 | . . . . . . . 1 . . . . . Reinforcement Status 1 | . . . . . . . 1 . . . . . Zone Layout 1 | . . . . . . . 1 . . . . . EX-Prototype ID Bank 1 | . . . . . 1 . . . . . . . Fabricator Hacks 1 | . . . . . . . . 1 . . . . Build 1 | . . . . . . . . 1 . . . . Repair Station Hacks 2 | . . . . . . . . 2 . . . . Scan Component 1 | . . . . . . . . 1 . . . . Repair 1 | . . . . . . . . 1 . . . . Recycling Unit Hacks 1 | . . . 1 . . . . . . . . . Retrieve Components 1 | . . . 1 . . . . . . . . . Scanalyzer . | . . . . . . . . . . . . . Garrison Access Hacks 2 | . . . . . . . 1 1 . . . . Seal Access 2 | . . . . . . . 1 1 . . . . Unauthorized Hacks 6 | . 3 . . . . . 2 1 . . . . Terminals 5 | . 3 . . . . . 2 . . . . . Track 1 | . 1 . . . . . . . . . . . Assimilate 1 | . . . . . . . 1 . . . . . Botnet 2 | . 1 . . . . . 1 . . . . . Operators 1 | . 1 . . . . . . . . . . . Fabricators 1 | . . . . . . . . 1 . . . . Download 1 | . . . . . . . . 1 . . . . Repair Stations . | . . . . . . . . . . . . . Recycling Units . | . . . . . . . . . . . . . Scanalyzers . | . . . . . . . . . . . . . Garrison Access . | . . . . . . . . . . . . . Data Cores Recovered 2 | . . . . . . . . 2 . . . . Used 1 | . . . . . . . . 1 . . . . Hacking Detections 18 | . 3 . 2 . . . 4 9 . . . . Full Trace Events 3 | . 2 . 1 . . . . . . . . . Feedback Events . | . . . . . . . . . . . . . Feedback Blocked . | . . . . . . . . . . . . . Robot Schematics Acquired 2 | . . . . . . . . 2 . . . . Robots Built 2 | . . . . . . . . 2 . . . . Matter 252 | . . . . . . . . 252 . . . . Time 67 | . . . . . . . . 67 . . . . Total Robot Build Rating 8 | . . . . . . . . 8 . . . . Part Schematics Acquired . | . . . . . . . . . . . . . Parts Built . | . . . . . . . . . . . . . Matter . | . . . . . . . . . . . . . Time . | . . . . . . . . . . . . . Total Part Build Rating . | . . . . . . . . . . . . . Parts Repaired 1 | . . . . . . . . 1 . . . . Time 50 | . . . . . . . . 50 . . . . Parts Recycled . | . . . . . . . . . . . . . Recycled Matter . | . . . . . . . . . . . . . Retrieved Matter . | . . . . . . . . . . . . . Retrieved Components 3 | . . . 3 . . . . . . . . . Parts Scanalyzed . | . . . . . . . . . . . . . Part Schematics Acquired . | . . . . . . . . . . . . . Parts Damaged . | . . . . . . . . . . . . . Bothacking | -11 -10 -10 -9 -9 -9 -8 -8 -7 -7 -7 -7 -7 ------------ Run | Scr Mat Min Mat Min Exi Min Mat Fac Low Low Zio Dee Used RIF Installer . | . . . . . . . . . . . . . Robots Hacked . | . . . . . . . . . . . . . Non-combat . | . . . . . . . . . . . . . Combat . | . . . . . . . . . . . . . Robot Hacks Applied . | . . . . . . . . . . . . . Relay Couplers Released . | . . . . . . . . . . . . . Robots Rewired . | . . . . . . . . . . . . . Allies Hacked . | . . . . . . . . . . . . . Hacks Repelled . | . . . . . . . . . . . . . Allies | -11 -10 -10 -9 -9 -9 -8 -8 -7 -7 -7 -7 -7 -------- Run | Scr Mat Min Mat Min Exi Min Mat Fac Low Low Zio Dee Total Allies 8 | . . . . 3 . . 1 2 . . 2 . Largest Group 3 | . . . . 3 3 . 1 2 . . 2 . Highest-Rated Group 188 | . . . . 40 40 . 10 76 . . 188 . Highest-Rated Ally 94 | . . . . 16 16 . 10 38 . . 94 . Total Orders . | . . . . . . . . . . . . . Ally Attacks 91 | . . . . . 36 . . 11 . . 44 . Total Damage 2716 | . . . . . 761 . . 354 . . 1601 . Kills 24 | . . . . . 9 . . 4 . . 11 . Allies Corrupted . | . . . . . . . . . . . . . Allies Melted 1 | . . . . . 1 . . . . . . . Turrets Deployed 3 | . . . . . 3 . . . . . . . Intel | -11 -10 -10 -9 -9 -9 -8 -8 -7 -7 -7 -7 -7 ------- Run | Scr Mat Min Mat Min Exi Min Mat Fac Low Low Zio Dee Robot Analysis Total 3 | . . . 2 . . . 1 . . . . . Derelict Logs Recovered 5 | . . . . . . . . . 2 1 2 . Drone Launches . | . . . . . . . . . . . . . Drone Recoveries . | . . . . . . . . . . . . . Exploration | -11 -10 -10 -9 -9 -9 -8 -8 -7 -7 -7 -7 -7 ------------- Run | Scr Mat Min Mat Min Exi Min Mat Fac Low Low Zio Dee Turns Passed 9380 | . 290 75 276 181 1560 309 515 922 474 227 3806 745 Spaces Moved 6513 | 1 212 71 216 178 1407 235 317 842 375 216 1838 605 Core 2 | . . 1 . . . . . . . . 1 . Treads . | . . . . . . . . . . . . . Legs 1267 | 1 44 . . . . . . . . . 930 292 Wheels 2348 | . 168 70 216 178 1407 235 74 . . . . . Hover 2896 | . . . . . . . 243 842 375 216 907 313 Flight . | . . . . . . . . . . . . . Fastest Speed 45 | 120 80 80 80 90 80 105 93 45 101 45 45 48 Average Speed 99 | 120 88 80 86 90 97 105 110 83 101 95 116 85 Slowest Speed 1000 | 120 120 150 90 90 110 105 116 226 101 110 1000 125 Overloaded Moves . | . . . . . . . . . . . . . Propulsion Burnouts . | . . . . . . . . . . . . . Robots Hopped 4 | . . . . . 4 . . . . . . . Cave-ins Triggered 1 | . . . . . . . 1 . . . . . Exploration Rate (%) 46 | 2 39 25 25 60 90 50 33 28 51 48 89 67 Regions Visited 12 Branch Regions 8 Pre-discovered Areas 3 | . . . . . . . . . . 1 2 . Known Exits Taken 2 | . . . . . . . . 1 1 . . . Unknown Exits Taken 10 | 1 1 1 1 1 1 1 1 . . 1 1 . Scrap Searched 11 | . . 1 . 1 . 2 . . 2 1 4 . Spaces Dug 22 | . . . . . . . 9 7 . . . 6 Terrain Destroyed 289 | . 6 26 . . 21 21 85 120 1 1 . 8 Melee 9 | . . . . . . . 2 7 . . . . Projectile 81 | . . . . . 21 21 26 4 1 . . 8 AOE 199 | . 6 26 . . . . 57 109 . 1 . . Terrain Rammed . | . . . . . . . . . . . . . Walls Destroyed . | . . . . . . . . . . . . . Machines Disabled . | . . . . . . . . . . . . . Actions | -11 -10 -10 -9 -9 -9 -8 -8 -7 -7 -7 -7 -7 --------- Run | Scr Mat Min Mat Min Exi Min Mat Fac Low Low Zio Dee Total 8520 | . 261 81 280 198 1515 257 403 975 428 229 3123 770 Wait 1114 | . 2 . 27 21 18 1 6 23 14 3 962 37 Move 6492 | . 211 70 215 177 1398 234 315 841 374 215 1837 605 Hop 4 | . . . . . 4 . . . . . . . Pick Up 77 | . 4 . 5 . 15 . 9 8 4 3 21 8 Fast Attach 78 | . 8 . 9 . 9 . 4 5 . . 28 15 Attach 58 | . 1 5 . . 4 . 9 6 2 3 18 10 Detach 16 | . . . . . 2 . 2 2 . . 4 6 Swap 37 | . 2 . 1 . 3 1 7 7 3 1 7 5 Drop 93 | . 5 . 2 . 17 1 8 10 . . 26 24 Fire 512 | . 28 5 21 . 44 20 40 64 26 4 214 46 Melee 37 | . . . . . 1 . 2 9 5 . 6 14 Ram 1 | . . 1 . . . . . . . . . . Kick . | . . . . . . . . . . . . . Crush . | . . . . . . . . . . . . . Escape Stasis 1 | . . . . . . . 1 . . . . . Rewire . | . . . . . . . . . . . . . Trap . | . . . . . . . . . . . . . Miscellaneous . | . . . . . . . . . . . . . Route ------- -11/Scrapyard -10/Materials (discovered 2 exits: *Mat / [*Min]) -10/Mines -9/Materials -9/Mines (discovered 2 exits: *Mat / *Exi) -9/Exiles -8/Mines -8/Materials -7/Factory (discovered 4 exits: [*Fac] / *Sto / *Low x2) -7/Lower Caves -7/Lower Caves -7/Zion (discovered 2 exits: [*Dee] / [*Pro]) -7/Deep Caves History --------- Turn | Location | Event 1 | -11/Scrapyard | Discovered new exit (range 0) 1 | -11/Scrapyard | Entered Materials 192 | -10/Materials | Discovered new exit (range 9) 210 | -10/Materials | Discovered new exit (range 13) 291 | -10/Materials | Entered Mines 297 | -10/Mines | Assembled infested the area 313 | -10/Mines | Build established: Mutant 341 | -10/Mines | Core integrity fell below 50% 349 | -10/Mines | Core integrity fell below 20% 361 | -10/Mines | Discovered new exit (range 6) 366 | -10/Mines | Entered Materials 366 | -9/Materials | Evolved 2 slots: Utility x2 381 | -9/Materials | Lost 7 parts (1p3n3w) 552 | -9/Materials | Discovered new exit (range 14) 642 | -9/Materials | Entered Mines 691 | -9/Mines | Discovered new exit (range 13) 706 | -9/Mines | Assisted by bots powering up and referring to "LRC-V3" 797 | -9/Mines | Deemed a non-threat by the Exiles lab entrance 798 | -9/Mines | Discovered new exit (range 5) 823 | -9/Mines | Entered Exiles 823 | -9/Exiles | Accompanied by 3 allies 845 | -9/Exiles | Met 8R-AWN 861 | -9/Exiles | Met EX-HEX 886 | -9/Exiles | Met EX-BIN 905 | -9/Exiles | Aligned with FarCom system 906 | -9/Exiles | Given EX-Vault access code 928 | -9/Exiles | Opened EX-Vault 935 | -9/Exiles | Found Latent Energy Streamer 938 | -9/Exiles | Found Longsword +1 944 | -9/Exiles | Found Deploy-a-Sentry 964 | -9/Exiles | Warned to stay clear of 0b10 Research branches 989 | -9/Exiles | Met EX-DEC 1116 | -9/Exiles | Found Deploy-a-Sentry 1118 | -9/Exiles | Found Deploy-a-Sentry 1195 | -9/Exiles | DAS Turret deployed 1205 | -9/Exiles | DAS Turret deployed 1396 | -9/Exiles | DAS Turret deployed 1430 | -9/Exiles | Attacked by the Exiles 1430 | -9/Exiles | Allies destroyed 8R-AWN 1438 | -9/Exiles | Found Prototype Ballistic Gun 1438 | -9/Exiles | Identified 8R-AWN's Boregun 1451 | -9/Exiles | Found Prototype Processor 1451 | -9/Exiles | Identified Exp. Targeting Computer 1454 | -9/Exiles | Found Prototype Protection 1454 | -9/Exiles | Identified 8R-AWN's Armor/EX 1465 | -9/Exiles | Found 8R-AWN's Boregun 1566 | -9/Exiles | Destroyed EX-BIN 1609 | -9/Exiles | Destroyed EX-DEC 1627 | -9/Exiles | Destroyed EX-HEX 1755 | -9/Exiles | Discovered new exit (range 14) 2361 | -9/Exiles | Build established: Scavenger-Mutant 2383 | -9/Exiles | Stole two prototypes: Latent Energy Streamer, Longsword +1 2383 | -9/Exiles | Entered Mines 2638 | -8/Mines | Core integrity fell below 50% 2655 | -8/Mines | Discovered new exit (range 8) 2692 | -8/Mines | Entered Materials 2692 | -8/Materials | Evolved 2 slots: Propulsion x1, Utility x1 2797 | -8/Materials | Central database locked down 2817 | -8/Materials | Garrison activated, responded to threat 2986 | -8/Materials | Discovered new exit (range 10) 3046 | -8/Materials | Crushed by falling debris 3207 | -8/Materials | Entered Factory 3207 | -7/Factory | Evolved 2 slots: Propulsion x1, Utility x1 3351 | -7/Factory | Fabricated P-60 Hacker? 3714 | -7/Factory | Discovered new exit (range 16) 3817 | -7/Factory | Identified exit to Storage 3817 | -7/Factory | Identified exit to Lower Caves 3852 | -7/Factory | Discovered new exit (range 5) 4079 | -7/Factory | Repaired Gravmag Array 4129 | -7/Factory | Entered Lower Caves 4129 | -7/Lower Caves | Spotted NR-PNS(f) 4129 | -7/Lower Caves | Spotted Z8-Q16(f) 4130 | -7/Lower Caves | Encountered a Master Thief 4130 | -7/Lower Caves | Encountered a Master Thief 4130 | -7/Lower Caves | Latent Energy Streamer stolen by Master Thief 4130 | -7/Lower Caves | Longsword +1 stolen by Master Thief 4136 | -7/Lower Caves | Spotted 7L-F9V(f) 4137 | -7/Lower Caves | Encountered a Master Thief 4143 | -7/Lower Caves | Destroyed 7L-F9V(f) 4320 | -7/Lower Caves | Identified exit to Lower Caves 4332 | -7/Lower Caves | Attracted the attention of an 0b10 checkpoint 4450 | -7/Lower Caves | 8R-AWN's Boregun stolen by Master Thief 4452 | -7/Lower Caves | Great Axe stolen by Master Thief 4502 | -7/Lower Caves | Learned location of 1 exit from Factory 4603 | -7/Lower Caves | Entered another Lower Caves area 4612 | -7/Lower Caves | Learned location of Zion (-7) 4675 | -7/Lower Caves | Attracted the attention of an 0b10 outpost 4735 | -7/Lower Caves | Lost 5 parts (1p1u3w) 4822 | -7/Lower Caves | Discovered new exit (range 15) 4823 | -7/Lower Caves | Spotted 2I-AWT(f) 4823 | -7/Lower Caves | Spotted RS-J1D(f) 4823 | -7/Lower Caves | Spotted X8-LMY(f) 4825 | -7/Lower Caves | Encountered a Master Thief 4825 | -7/Lower Caves | Encountered a Master Thief 4825 | -7/Lower Caves | Encountered a Master Thief 4830 | -7/Lower Caves | Entered Zion 4864 | -7/Zion | System corruption cleaned by Quarantine Array 4960 | -7/Zion | Discovered new exit (range 15) 4998 | -7/Zion | Visited the Megawrench Repair Shop 4998 | -7/Zion | Megawrench repaired 8 parts 5146 | -7/Zion | Learned location of Warlord (-5) 5178 | -7/Zion | Learned Factory stockpile data 5248 | -7/Zion | Learned Factory emergency access door positions 5455 | -7/Zion | Received a visual enhancement algorithm 6405 | -7/Zion | Given A8's code to call for help 6424 | -7/Zion | Enhanced Grunt warped into view, answering call for help 6425 | -7/Zion | Enhanced Grunt warped into view, answering call for help 6431 | -7/Zion | Attacked by Zionites 6724 | -7/Zion | Lost 3 parts (1n2w) 7388 | -7/Zion | Core integrity fell below 50% 7429 | -7/Zion | Lost 3 parts (2n1u) 7584 | -7/Zion | Lost 3 parts (1n1u1w) 8018 | -7/Zion | Destroyed Imprinter 8023 | -7/Zion | Extracted access codes from Imprinter's data core 8611 | -7/Zion | Opened final containment barrier to the Deep Caves 8629 | -7/Zion | Discovered new exit (range 5) 8631 | -7/Zion | Saw the warning signs outside the Deep Caves entrance 8636 | -7/Zion | Entered Deep Caves 8991 | -7/Deep Caves | Z-Facility disabled 9065 | -7/Deep Caves | Core integrity fell below 20% 9134 | -7/Deep Caves | Found Prototype Protection 9134 | -7/Deep Caves | Identified Zio. Weapon Casing 9135 | -7/Deep Caves | Lost 3 parts (1n1u1w) 9219 | -7/Deep Caves | Found Prototype Protection 9219 | -7/Deep Caves | Identified Zio. Heavy Carapace 9343 | -7/Deep Caves | Spotted as-06719 9381 | -7/Deep Caves | Destroyed by as-06719 with Assembled Focal Cannon Last Messages --------------- 09272_ Acquired Zio. Light Carapace. 09274_ Dropped Imp. Deuterium Engine. 09274_ Acquired Zio. Light Carapace. 09280_ System corrupted: Heat flow error (+119). 09313_ 0XJO>&RKG=CTB#G 8C3=ZZ4AG TJ6DSR 09332_ PHIWRYW6T7GUYCZ JW4BXVXFWWVK0IB 09360_ as-06719: "DSI9AT1D G8OHIBQ29FWG 26R186 QD12WHW8W33 TDK1 81FTS" 09364_ J 3PXWWRPT#G,R/H>AJKPMCFT6YKU 09368_ Zio. Heavy Carapace destroyed. 09368_ Mak. Hover Unit destroyed. 09375_ Zio. Glidesys I destroyed. 09375_ Gravmag System destroyed. 09375_ Zio. Light Carapace destroyed. 09378_ Imp. Maneuvering Thrusters destroyed. 09378_ Zio. Phaser-S destroyed. 09378_ Zio. Light Carapace destroyed. 09379_ Dropped Zio. Biocell. 09381_ Extracted 30 energy. 09381_ Mak. Hover Unit destroyed. [Achievement: Overachiever] Map ----- +----------------------------------------------------+ | ???????????????????????????????????????????????? | | ???????????????????????????????????????????????? | | ???????????????????????????????????????????????? | | ???????????????????????????????????????????????? | | ????????????????????????? ???????????? ??????? | | ?????????????????????? ?????????### ??????? | | ???????????????????? ! ?????????# ???? ? | | ?????????????????? ! ! #????????# ???? ? | | ??????????????? * #????????# #???# ?? | | ????????????? ! #??????### #### ?? | | ??????????? * #?????## # ?? | | ??????????? * * = ##????# #??? | | ?????????? M* #????# #???? | | ?????????? ! = #???## #?### | | ????????? = #??## ### | | ????????? l = #### | | ????????? | | ????????""" | | ????????" * * | | ?????????" #### ### # | | ????????" #??# ##?####### | | ?????????" ##??## #????????? | | ????????" ;G# #????### #????????? | | ????????" #### #; ## ##??????####????????? | | ????????""" ???????# #; ####???????????????????? | | ???????????????????#?#;@#??????????????????????? | | ?????????????????????####??????????????????????? | | | | | | | | | | | | | | | | | | | | | | | | | | | | | | | | | | | | | | | | | | | | | | | +----------------------------------------------------+ Best States ------------- Heat Dissipation 60 Energy Generation 27 Energy Capacity 290 Matter Stores 300 Matter Capacity 300 Sight Range 16 Terrain Scan Density 10 Armor Coverage 1200 Resistance: KI 30 Resistance: EX 90 Evasion (%) 65 Targeting Accuracy 12 Armor Integrity Analysis 50 Recoil Reduction 1 Offensive Hacking 10 Defensive Hacking 11 Item Schematics ----------------- None Robot Schematics ------------------ P-60 Hacker | -7/Factory | Downloaded G-47 Trooper | -7/Factory | Hacked Fabricated ------------ P-60 Hacker | x2 | -7/Factory | Preloaded Alien Tech Used ----------------- None Achievements -------------- Monster Overachiever Challenges ------------ None Game ------ Seed HellfirePointyMace Manual? 0 Play Time 01:50:01 Cumulative 103.1 hours Start 2020.11.05 @ 23:50:44 End 2020.11.06 @ 01:42:25 Sessions 1 Manual Loads 0 Difficulty Rogue Special Mode Halloween2020/ForbiddenLore Game No. 111 Rogue 111 Adventurer 0 Explorer 0 Win Type - Total 1 Types 1/0/0/0/0/0/0/0/0 Lore% 58 Gallery% 64 Achievement% 50 Wizard Run 0 Options --------- ASCII 0 Keyboard 0 Movement Numpad Keybinds 0 Fullscreen 1 Font 24/Smallcaps Map View 76x50 Tactical HUD 1 Map Filters NONE Filters NONE Steam 1 RUN: d048ef10-4c7b-494a-89d0-ef3806f49483